[Event "Titled Tuesday Blitz November 01 Late 2022"]
[White "Makarian, Rudik"]
[Black "Urbina Perez, Juan Antonio"]
[WhiteFideId "44105681"]
[BlackFideId "2217368"]
[WhiteElo "2405"]
[BlackElo "2197"]
[Result "1-0"]
[Round "01"]
[TimeControl "180+1"]
[Date "2022.11.02"]
[WhiteClock "0:00:08"]
[BlackClock "0:00:04"]

1. b3 {[%clk 0:03:00]}  d5 {[%clk 0:02:41]} 2. Bb2 {[%clk 0:03:00]}  Bf5 {[%clk 0:02:40]} 3. d3 {[%clk 0:02:59]}  Nf6 {[%clk 0:02:30]} 4. Nd2 {[%clk 0:02:59]}  e6 {[%clk 0:02:30]} 5. g3 {[%clk 0:02:59]}  h6 {[%clk 0:02:25]} 6. Bg2 {[%clk 0:02:59]}  c6 {[%clk 0:02:25]} 7. e4 {[%clk 0:02:58]}  Bh7 {[%clk 0:02:21]} 8. Nh3 {[%clk 0:02:58]}  Bc5 {[%clk 0:02:19]} 9. O-O {[%clk 0:02:57]}  Qe7 {[%clk 0:02:19]} 10. Qe2 {[%clk 0:02:56]}  O-O {[%clk 0:02:16]} 11. Kh1 {[%clk 0:02:56]}  Ba3 {[%clk 0:02:14]} 12. Bxa3 {[%clk 0:02:54]}  Qxa3 {[%clk 0:02:15]} 13. f4 {[%clk 0:02:53]}  dxe4 {[%clk 0:02:13]} 14. Nxe4 {[%clk 0:02:53]}  Nxe4 {[%clk 0:02:12]} 15. dxe4 {[%clk 0:02:53]}  Nd7 {[%clk 0:02:10]} 16. c4 {[%clk 0:02:50]}  Rfd8 {[%clk 0:02:10]} 17. g4 {[%clk 0:02:50]}  Nf8 {[%clk 0:02:04]} 18. f5 {[%clk 0:02:50]}  Qb4 {[%clk 0:01:58]} 19. Rad1 {[%clk 0:02:49]}  Qb6 {[%clk 0:01:53]} 20. Nf4 {[%clk 0:02:48]}  Rxd1 {[%clk 0:01:51]} 21. Rxd1 {[%clk 0:02:49]}  Rd8 {[%clk 0:01:51]} 22. Rxd8 {[%clk 0:02:45]}  Qxd8 {[%clk 0:01:52]} 23. h3 {[%clk 0:02:45]}  e5 {[%clk 0:01:47]} 24. Nh5 {[%clk 0:02:38]}  f6 {[%clk 0:01:45]} 25. Kh2 {[%clk 0:02:37]}  Kh8 {[%clk 0:01:42]} 26. Qe3 {[%clk 0:02:35]}  Bg8 {[%clk 0:01:42]} 27. Bf3 {[%clk 0:02:36]}  Bf7 {[%clk 0:01:41]} 28. Ng3 {[%clk 0:02:36]}  Qd4 {[%clk 0:01:40]} 29. Qxd4 {[%clk 0:02:29]}  exd4 {[%clk 0:01:41]} 30. Kg2 {[%clk 0:02:29]}  Nd7 {[%clk 0:01:40]} 31. Kf2 {[%clk 0:02:28]}  Ne5 {[%clk 0:01:40]} 32. Be2 {[%clk 0:02:29]}  c5 {[%clk 0:01:40]} 33. Bf1 {[%clk 0:02:21]}  Kg8 {[%clk 0:01:40]} 34. Ne2 {[%clk 0:02:20]}  Kf8 {[%clk 0:01:39]} 35. Nf4 {[%clk 0:02:20]}  Ke7 {[%clk 0:01:38]} 36. Be2 {[%clk 0:02:21]}  b6 {[%clk 0:01:38]} 37. h4 {[%clk 0:02:21]}  Nc6 {[%clk 0:01:37]} 38. a3 {[%clk 0:02:15]}  a5 {[%clk 0:01:32]} 39. Kg3 {[%clk 0:02:09]}  Ne5 {[%clk 0:01:32]} 40. a4 {[%clk 0:02:06]}  Nc6 {[%clk 0:01:29]} 41. Nh3 {[%clk 0:02:05]}  Ne5 {[%clk 0:01:26]} 42. Nf2 {[%clk 0:02:02]}  Nc6 {[%clk 0:01:25]} 43. Kf4 {[%clk 0:02:03]}  Ne5 {[%clk 0:01:25]} 44. g5 {[%clk 0:02:03]}  hxg5+ {[%clk 0:01:24]} 45. hxg5 {[%clk 0:02:03]}  Be8 {[%clk 0:01:23]} 46. g6 {[%clk 0:02:02]}  Bc6 {[%clk 0:01:15]} 47. Bf1 {[%clk 0:02:00]}  Bb7 {[%clk 0:01:10]} 48. Nh1 {[%clk 0:01:48]}  Bc6 {[%clk 0:00:56]} 49. Ng3 {[%clk 0:01:48]}  Bb7 {[%clk 0:00:56]} 50. Nh5 {[%clk 0:01:48]}  Kf8 {[%clk 0:00:56]} 51. Ng3 {[%clk 0:01:43]}  Ke7 {[%clk 0:00:56]} 52. Ne2 {[%clk 0:01:42]}  Bc6 {[%clk 0:00:54]} 53. Nc1 {[%clk 0:01:38]}  Bb7 {[%clk 0:00:51]} 54. Bg2 {[%clk 0:01:11]}  Bc6 {[%clk 0:00:48]} 55. Bf3 {[%clk 0:01:07]}  Bb7 {[%clk 0:00:47]} 56. Kg3 {[%clk 0:01:06]}  Bc6 {[%clk 0:00:46]} 57. Ne2 {[%clk 0:01:06]}  Bb7 {[%clk 0:00:35]} 58. Nf4 {[%clk 0:01:05]}  d3 {[%clk 0:00:30]} 59. Ng2 {[%clk 0:00:37]}  d2 {[%clk 0:00:26]} 60. Ne3 {[%clk 0:00:37]}  Nd3 {[%clk 0:00:22]} 61. Kg2 {[%clk 0:00:27]}  Nc1 {[%clk 0:00:22]} 62. Kf2 {[%clk 0:00:21]}  Nxb3 {[%clk 0:00:22]} 63. Bd1 {[%clk 0:00:18]}  Nd4 {[%clk 0:00:21]} 64. Nd5+ {[%clk 0:00:10]}  Bxd5 {[%clk 0:00:20]} 65. cxd5 {[%clk 0:00:11]}  Kd6 {[%clk 0:00:19]} 66. Ke3 {[%clk 0:00:11]}  b5 {[%clk 0:00:16]} 67. axb5 {[%clk 0:00:11]}  Nxb5 {[%clk 0:00:17]} 68. Kxd2 {[%clk 0:00:12]}  Nd4 {[%clk 0:00:16]} 69. Kd3 {[%clk 0:00:12]}  Nb5 {[%clk 0:00:12]} 70. Ba4 {[%clk 0:00:11]}  Nd4 {[%clk 0:00:12]} 71. Ke3 {[%clk 0:00:11]}  Ke5 {[%clk 0:00:10]} 72. Kd3 {[%clk 0:00:11]}  Kd6 {[%clk 0:00:10]} 73. Kc4 {[%clk 0:00:11]}  Ne2 {[%clk 0:00:08]} 74. e5+ {[%clk 0:00:08]}  Kxe5 {[%clk 0:00:04]} 75. Kxc5 {[%clk 0:00:08]} 1-0


[Site "https://www.chess.com"]

[Event "Titled Tuesday Blitz November 01 Late 2022"]
[White "Manolache, Marius"]
[Black "Sabar, Ethmane Daouda"]
[WhiteFideId "1201530"]
[BlackFideId "19600097"]
[WhiteElo "2364"]
[BlackElo "1950"]
[Result "1-0"]
[Round "01"]
[TimeControl "180+1"]
[Date "2022.11.02"]
[WhiteClock "0:00:45"]
[BlackClock "0:00:04"]

1. d4 {[%clk 0:02:56]}  d5 {[%clk 0:02:58]} 2. Nf3 {[%clk 0:02:55]}  Nf6 {[%clk 0:02:57]} 3. c4 {[%clk 0:02:55]}  Bf5 {[%clk 0:02:56]} 4. Nc3 {[%clk 0:02:55]}  e6 {[%clk 0:02:57]} 5. e3 {[%clk 0:02:55]}  c6 {[%clk 0:02:57]} 6. Nh4 {[%clk 0:02:50]}  Bg6 {[%clk 0:02:56]} 7. Be2 {[%clk 0:02:49]}  Nbd7 {[%clk 0:02:55]} 8. cxd5 {[%clk 0:02:48]}  exd5 {[%clk 0:02:50]} 9. O-O {[%clk 0:02:46]}  Bd6 {[%clk 0:02:45]} 10. g3 {[%clk 0:02:46]}  O-O {[%clk 0:02:32]} 11. Bf3 {[%clk 0:02:46]}  Qe7 {[%clk 0:02:27]} 12. Nxg6 {[%clk 0:02:45]}  hxg6 {[%clk 0:02:28]} 13. Qc2 {[%clk 0:02:42]}  g5 {[%clk 0:02:27]} 14. Bd2 {[%clk 0:02:38]}  g4 {[%clk 0:02:26]} 15. Bg2 {[%clk 0:02:38]}  Rfe8 {[%clk 0:02:19]} 16. Qd1 {[%clk 0:02:32]}  Nf8 {[%clk 0:02:17]} 17. Re1 {[%clk 0:02:32]}  Bb4 {[%clk 0:02:08]} 18. a3 {[%clk 0:02:29]}  Bxc3 {[%clk 0:02:08]} 19. bxc3 {[%clk 0:02:27]}  Qe6 {[%clk 0:02:03]} 20. c4 {[%clk 0:02:22]}  Ne4 {[%clk 0:02:01]} 21. cxd5 {[%clk 0:02:21]}  cxd5 {[%clk 0:02:02]} 22. Qc2 {[%clk 0:02:13]}  Nh7 {[%clk 0:01:56]} 23. Rab1 {[%clk 0:02:08]}  b6 {[%clk 0:01:55]} 24. Rec1 {[%clk 0:02:07]}  Nhg5 {[%clk 0:01:54]} 25. Qd1 {[%clk 0:02:04]}  Nxd2 {[%clk 0:01:50]} 26. Qxd2 {[%clk 0:02:04]}  Nf3+ {[%clk 0:01:50]} 27. Bxf3 {[%clk 0:02:04]}  gxf3 {[%clk 0:01:51]} 28. Qd1 {[%clk 0:02:04]}  Qf5 {[%clk 0:01:42]} 29. Rc6 {[%clk 0:02:02]}  Re6 {[%clk 0:01:39]} 30. Rbc1 {[%clk 0:02:01]}  Rae8 {[%clk 0:01:36]} 31. Rc8 {[%clk 0:01:58]}  g5 {[%clk 0:01:23]} 32. h3 {[%clk 0:01:55]}  Kg7 {[%clk 0:01:20]} 33. g4 {[%clk 0:01:52]}  Qe4 {[%clk 0:01:13]} 34. Kh2 {[%clk 0:01:47]}  Rh6 {[%clk 0:01:09]} 35. Rxe8 {[%clk 0:01:39]}  Qxe8 {[%clk 0:01:10]} 36. Kg3 {[%clk 0:01:35]}  Qb8+ {[%clk 0:01:06]} 37. Kxf3 {[%clk 0:01:35]}  Rxh3+ {[%clk 0:01:05]} 38. Ke2 {[%clk 0:01:35]}  Qh2 {[%clk 0:00:59]} 39. Qg1 {[%clk 0:01:33]}  Qd6 {[%clk 0:00:55]} 40. Rc3 {[%clk 0:01:31]}  b5 {[%clk 0:00:42]} 41. Rc5 {[%clk 0:01:25]}  a6 {[%clk 0:00:39]} 42. Qg2 {[%clk 0:01:23]}  Rh4 {[%clk 0:00:31]} 43. Qxd5 {[%clk 0:01:19]}  Qxd5 {[%clk 0:00:25]} 44. Rxd5 {[%clk 0:01:19]}  Rxg4 {[%clk 0:00:26]} 45. Rd6 {[%clk 0:01:17]}  a5 {[%clk 0:00:26]} 46. Rb6 {[%clk 0:01:14]}  b4 {[%clk 0:00:24]} 47. axb4 {[%clk 0:01:15]}  axb4 {[%clk 0:00:25]} 48. Rxb4 {[%clk 0:01:13]}  Re4 {[%clk 0:00:23]} 49. Rb5 {[%clk 0:01:12]}  Kg6 {[%clk 0:00:19]} 50. Rb6+ {[%clk 0:01:10]}  f6 {[%clk 0:00:17]} 51. Kd3 {[%clk 0:01:10]}  Re8 {[%clk 0:00:16]} 52. d5 {[%clk 0:01:10]}  Kf5 {[%clk 0:00:15]} 53. Kd4 {[%clk 0:01:10]}  g4 {[%clk 0:00:15]} 54. Rb7 {[%clk 0:01:05]}  Kg6 {[%clk 0:00:14]} 55. e4 {[%clk 0:01:04]}  f5 {[%clk 0:00:13]} 56. e5 {[%clk 0:01:04]}  f4 {[%clk 0:00:13]} 57. Ke4 {[%clk 0:01:01]}  Rf8 {[%clk 0:00:11]} 58. Rb6+ {[%clk 0:01:00]}  Kg5 {[%clk 0:00:11]} 59. d6 {[%clk 0:00:56]}  g3 {[%clk 0:00:11]} 60. fxg3 {[%clk 0:00:52]}  fxg3 {[%clk 0:00:12]} 61. Rb7 {[%clk 0:00:47]}  Kg6 {[%clk 0:00:10]} 62. Rb3 {[%clk 0:00:46]}  Kf7 {[%clk 0:00:05]} 63. Rf3+ {[%clk 0:00:45]}  Ke8 {[%clk 0:00:04]} 64. Rxg3 {[%clk 0:00:45]} 1-0


[Site "https://www.chess.com"]

[Event "Titled Tuesday Blitz November 01 Late 2022"]
[White "Marchesich, Giovanni"]
[Black "Kodinets, Konstantin L."]
[WhiteFideId "2824790"]
[BlackFideId "4122011"]
[WhiteElo "2200"]
[BlackElo "2447"]
[Result "0-1"]
[Round "01"]
[TimeControl "180+1"]
[Date "2022.11.02"]
[WhiteClock "0:00:02"]
[BlackClock "0:00:16"]

1. d4 {[%clk 0:02:55]}  d6 {[%clk 0:02:59]} 2. Nf3 {[%clk 0:02:53]}  Nf6 {[%clk 0:03:00]} 3. Bg5 {[%clk 0:02:53]}  Nbd7 {[%clk 0:03:00]} 4. Nbd2 {[%clk 0:02:52]}  h6 {[%clk 0:03:01]} 5. Bh4 {[%clk 0:02:51]}  g5 {[%clk 0:03:01]} 6. Bg3 {[%clk 0:02:51]}  Nh5 {[%clk 0:03:01]} 7. e4 {[%clk 0:02:50]}  Bg7 {[%clk 0:03:02]} 8. c3 {[%clk 0:02:50]}  c5 {[%clk 0:03:01]} 9. dxc5 {[%clk 0:02:48]}  Nxc5 {[%clk 0:02:59]} 10. Bc4 {[%clk 0:02:48]}  Be6 {[%clk 0:02:45]} 11. Bxe6 {[%clk 0:02:23]}  Nxe6 {[%clk 0:02:44]} 12. O-O {[%clk 0:02:22]}  O-O {[%clk 0:02:43]} 13. Nxg5 {[%clk 0:02:14]}  Nxg5 {[%clk 0:02:35]} 14. Qxh5 {[%clk 0:02:12]}  Qb6 {[%clk 0:02:33]} 15. Kh1 {[%clk 0:01:56]}  Qxb2 {[%clk 0:02:30]} 16. Rad1 {[%clk 0:01:49]}  Qc2 {[%clk 0:02:18]} 17. Rfe1 {[%clk 0:01:41]}  Bxc3 {[%clk 0:02:01]} 18. f4 {[%clk 0:01:41]}  Bxd2 {[%clk 0:02:01]} 19. fxg5 {[%clk 0:01:41]}  Bxg5 {[%clk 0:02:00]} 20. h4 {[%clk 0:01:21]}  Bf6 {[%clk 0:01:47]} 21. Qxh6 {[%clk 0:01:19]}  Bg7 {[%clk 0:01:32]} 22. Qg5 {[%clk 0:01:17]}  Qxa2 {[%clk 0:01:15]} 23. Rd5 {[%clk 0:01:07]}  e6 {[%clk 0:01:03]} 24. h5 {[%clk 0:01:02]}  Kh7 {[%clk 0:01:03]} 25. Rxd6 {[%clk 0:00:47]}  Bh6 {[%clk 0:00:47]} 26. Qf6 {[%clk 0:00:42]}  Qa5 {[%clk 0:00:42]} 27. e5 {[%clk 0:00:36]}  Qb4 {[%clk 0:00:28]} 28. Rd7 {[%clk 0:00:30]}  Qg4 {[%clk 0:00:28]} 29. Rxf7+ {[%clk 0:00:28]}  Rxf7 {[%clk 0:00:28]} 30. Qxf7+ {[%clk 0:00:29]}  Bg7 {[%clk 0:00:29]} 31. Re3 {[%clk 0:00:14]}  Rf8 {[%clk 0:00:26]} 32. Qg6+ {[%clk 0:00:06]}  Qxg6 {[%clk 0:00:26]} 33. hxg6+ {[%clk 0:00:07]}  Kxg6 {[%clk 0:00:26]} 34. Rd3 {[%clk 0:00:06]}  Rf7 {[%clk 0:00:24]} 35. Kh2 {[%clk 0:00:06]}  b5 {[%clk 0:00:20]} 36. Rb3 {[%clk 0:00:05]}  Rb7 {[%clk 0:00:20]} 37. Rb4 {[%clk 0:00:03]}  a5 {[%clk 0:00:20]} 38. Rg4+ {[%clk 0:00:03]}  Kf7 {[%clk 0:00:18]} 39. Rf4+ {[%clk 0:00:03]}  Kg8 {[%clk 0:00:17]} 40. Bf2 {[%clk 0:00:02]}  Bxe5 {[%clk 0:00:16]} 0-1


[Site "https://www.chess.com"]

[Event "Titled Tuesday Blitz November 01 Late 2022"]
[White "Melkumyan, Hrant"]
[Black "Mendez Fortes, Eduardo Jesus"]
[WhiteFideId "13302485"]
[BlackFideId "3502376"]
[WhiteElo "2604"]
[BlackElo "2307"]
[Result "1-0"]
[Round "01"]
[TimeControl "180+1"]
[Date "2022.11.01"]
[WhiteClock "0:01:48"]
[BlackClock "0:00:09"]

1. d4 {[%clk 0:03:00]}  Nf6 {[%clk 0:02:57]} 2. c4 {[%clk 0:03:01]}  e6 {[%clk 0:02:56]} 3. Bf4 {[%clk 0:03:01]}  d5 {[%clk 0:02:45]} 4. e3 {[%clk 0:03:00]}  Bb4+ {[%clk 0:02:35]} 5. Nd2 {[%clk 0:02:57]}  O-O {[%clk 0:01:38]} 6. Nf3 {[%clk 0:02:57]}  c5 {[%clk 0:01:34]} 7. dxc5 {[%clk 0:02:54]}  Bxc5 {[%clk 0:01:35]} 8. a3 {[%clk 0:02:53]}  a5 {[%clk 0:01:33]} 9. Rc1 {[%clk 0:02:53]}  Ba7 {[%clk 0:01:32]} 10. Bd3 {[%clk 0:02:54]}  Nc6 {[%clk 0:01:31]} 11. O-O {[%clk 0:02:53]}  Re8 {[%clk 0:01:31]} 12. Bb1 {[%clk 0:02:44]}  e5 {[%clk 0:01:16]} 13. Bg5 {[%clk 0:02:44]}  e4 {[%clk 0:01:14]} 14. cxd5 {[%clk 0:02:36]}  exf3 {[%clk 0:01:07]} 15. dxc6 {[%clk 0:02:34]}  fxg2 {[%clk 0:01:07]} 16. Kxg2 {[%clk 0:02:32]}  Qd5+ {[%clk 0:00:38]} 17. Nf3 {[%clk 0:02:30]}  bxc6 {[%clk 0:00:34]} 18. Qxd5 {[%clk 0:02:22]}  cxd5 {[%clk 0:00:35]} 19. Bxf6 {[%clk 0:02:18]}  gxf6 {[%clk 0:00:34]} 20. Rfd1 {[%clk 0:02:19]}  Be6 {[%clk 0:00:30]} 21. Ba2 {[%clk 0:02:17]}  Rab8 {[%clk 0:00:28]} 22. Rc2 {[%clk 0:02:18]}  a4 {[%clk 0:00:24]} 23. Bxd5 {[%clk 0:02:17]}  Red8 {[%clk 0:00:24]} 24. e4 {[%clk 0:02:14]}  f5 {[%clk 0:00:21]} 25. Ng5 {[%clk 0:02:00]}  fxe4 {[%clk 0:00:20]} 26. Nxe6 {[%clk 0:02:00]}  fxe6 {[%clk 0:00:18]} 27. Bxe6+ {[%clk 0:02:01]}  Kh8 {[%clk 0:00:16]} 28. Re1 {[%clk 0:01:59]}  Bd4 {[%clk 0:00:15]} 29. Rxe4 {[%clk 0:01:56]}  Bxb2 {[%clk 0:00:11]} 30. Rxa4 {[%clk 0:01:56]}  Rd3 {[%clk 0:00:10]} 31. Ra7 {[%clk 0:01:48]}  Bxa3 {[%clk 0:00:09]} 32. Rcc7 {[%clk 0:01:48]} 1-0


[Site "https://www.chess.com"]

[Event "Titled Tuesday Blitz November 01 Late 2022"]
[White "Munoz Sanchez, Miguel"]
[Black "Postny, Evgeny"]
[WhiteFideId "3600734"]
[BlackFideId "2804344"]
[WhiteElo "2166"]
[BlackElo "2473"]
[Result "1/2-1/2"]
[Round "01"]
[TimeControl "180+1"]
[Date "2022.11.02"]
[WhiteClock "0:00:18"]
[BlackClock "0:00:15"]

1. d4 {[%clk 0:02:58]}  Nf6 {[%clk 0:02:58]} 2. Nf3 {[%clk 0:02:59]}  c5 {[%clk 0:02:57]} 3. g3 {[%clk 0:02:59]}  cxd4 {[%clk 0:02:57]} 4. Nxd4 {[%clk 0:02:59]}  g6 {[%clk 0:02:57]} 5. Bg2 {[%clk 0:02:58]}  Bg7 {[%clk 0:02:57]} 6. c4 {[%clk 0:02:57]}  Nc6 {[%clk 0:02:58]} 7. O-O {[%clk 0:02:56]}  O-O {[%clk 0:02:58]} 8. Nc3 {[%clk 0:02:55]}  Nxd4 {[%clk 0:02:57]} 9. Qxd4 {[%clk 0:02:56]}  d6 {[%clk 0:02:58]} 10. e4 {[%clk 0:02:52]}  Qa5 {[%clk 0:02:56]} 11. Qd3 {[%clk 0:02:41]}  Qh5 {[%clk 0:02:52]} 12. f3 {[%clk 0:02:35]}  Bh3 {[%clk 0:02:48]} 13. Be3 {[%clk 0:02:35]}  Bxg2 {[%clk 0:02:46]} 14. Kxg2 {[%clk 0:02:36]}  a6 {[%clk 0:02:42]} 15. Rac1 {[%clk 0:02:35]}  Rac8 {[%clk 0:02:41]} 16. b3 {[%clk 0:02:34]}  Rfe8 {[%clk 0:02:40]} 17. Nd5 {[%clk 0:02:33]}  Nd7 {[%clk 0:02:32]} 18. f4 {[%clk 0:02:26]}  f5 {[%clk 0:02:02]} 19. exf5 {[%clk 0:02:23]}  Qxf5 {[%clk 0:02:03]} 20. Qxf5 {[%clk 0:02:21]}  gxf5 {[%clk 0:02:04]} 21. Nb6 {[%clk 0:02:12]}  Nxb6 {[%clk 0:02:03]} 22. Bxb6 {[%clk 0:02:13]}  Kf7 {[%clk 0:01:59]} 23. Rcd1 {[%clk 0:02:10]}  Rc6 {[%clk 0:01:57]} 24. Bd4 {[%clk 0:02:10]}  e5 {[%clk 0:01:31]} 25. fxe5 {[%clk 0:02:08]}  dxe5 {[%clk 0:01:32]} 26. Bc3 {[%clk 0:01:26]}  Kg6 {[%clk 0:01:31]} 27. Rd7 {[%clk 0:01:25]}  b5 {[%clk 0:01:28]} 28. Rfd1 {[%clk 0:01:11]}  bxc4 {[%clk 0:01:26]} 29. R1d6+ {[%clk 0:01:10]}  Re6 {[%clk 0:01:22]} 30. Rxe6+ {[%clk 0:01:10]}  Rxe6 {[%clk 0:01:22]} 31. bxc4 {[%clk 0:01:11]}  Rc6 {[%clk 0:01:22]} 32. Rd5 {[%clk 0:01:08]}  Rxc4 {[%clk 0:01:20]} 33. Bxe5 {[%clk 0:01:08]}  Rc2+ {[%clk 0:01:14]} 34. Kf3 {[%clk 0:01:07]}  Bxe5 {[%clk 0:01:13]} 35. Rxe5 {[%clk 0:01:07]}  Rxa2 {[%clk 0:01:14]} 36. h4 {[%clk 0:01:06]}  Ra3+ {[%clk 0:01:12]} 37. Kf4 {[%clk 0:01:05]}  Ra4+ {[%clk 0:01:12]} 38. Kf3 {[%clk 0:01:06]}  Kf6 {[%clk 0:01:06]} 39. Rc5 {[%clk 0:01:05]}  Ra3+ {[%clk 0:01:06]} 40. Kf4 {[%clk 0:01:04]}  Ra4+ {[%clk 0:01:06]} 41. Kf3 {[%clk 0:01:05]}  a5 {[%clk 0:01:03]} 42. Rc6+ {[%clk 0:01:04]}  Ke5 {[%clk 0:01:03]} 43. Rc5+ {[%clk 0:01:04]}  Ke6 {[%clk 0:01:03]} 44. Rc6+ {[%clk 0:01:04]}  Kd5 {[%clk 0:01:04]} 45. Rh6 {[%clk 0:01:03]}  Rb4 {[%clk 0:00:38]} 46. Rxh7 {[%clk 0:01:02]}  Kc4 {[%clk 0:00:37]} 47. Kf4 {[%clk 0:00:47]}  a4 {[%clk 0:00:24]} 48. Kxf5 {[%clk 0:00:41]}  a3 {[%clk 0:00:23]} 49. Ra7 {[%clk 0:00:40]}  Kb3 {[%clk 0:00:23]} 50. Rxa3+ {[%clk 0:00:35]}  Kxa3 {[%clk 0:00:24]} 51. h5 {[%clk 0:00:33]}  Rb3 {[%clk 0:00:17]} 52. g4 {[%clk 0:00:32]}  Rh3 {[%clk 0:00:16]} 53. Kg6 {[%clk 0:00:31]}  Kb4 {[%clk 0:00:16]} 54. h6 {[%clk 0:00:30]}  Kc5 {[%clk 0:00:17]} 55. h7 {[%clk 0:00:29]}  Kd6 {[%clk 0:00:17]} 56. Kg7 {[%clk 0:00:29]}  Ke6 {[%clk 0:00:16]} 57. g5 {[%clk 0:00:27]}  Kf5 {[%clk 0:00:16]} 58. g6 {[%clk 0:00:28]}  Kg5 {[%clk 0:00:14]} 59. h8=Q {[%clk 0:00:17]}  Rxh8 {[%clk 0:00:14]} 60. Kxh8 {[%clk 0:00:18]}  Kxg6 {[%clk 0:00:15]} 1/2-1/2


[Site "https://www.chess.com"]

[Event "Titled Tuesday Blitz November 01 Late 2022"]
[White "Ozdemir, Serhan Berat"]
[Black "Erigaisi Arjun"]
[WhiteFideId "6374611"]
[BlackFideId "35009192"]
[WhiteElo "2016"]
[BlackElo "2745"]
[Result "0-1"]
[Round "01"]
[TimeControl "180+1"]
[Date "2022.11.01"]
[WhiteClock "0:00:01"]
[BlackClock "0:01:30"]

1. e4 {[%clk 0:02:57]}  e6 {[%clk 0:03:00]} 2. d4 {[%clk 0:02:56]}  d5 {[%clk 0:03:00]} 3. Nd2 {[%clk 0:02:54]}  Nf6 {[%clk 0:02:59]} 4. e5 {[%clk 0:02:52]}  Ne4 {[%clk 0:03:00]} 5. Nxe4 {[%clk 0:02:27]}  dxe4 {[%clk 0:03:01]} 6. Be3 {[%clk 0:02:23]}  b6 {[%clk 0:03:00]} 7. Qg4 {[%clk 0:02:20]}  Bb7 {[%clk 0:02:59]} 8. Ne2 {[%clk 0:02:17]}  h5 {[%clk 0:02:57]} 9. Qf4 {[%clk 0:02:15]}  Qd5 {[%clk 0:02:50]} 10. Nc3 {[%clk 0:02:09]}  Bb4 {[%clk 0:02:49]} 11. a3 {[%clk 0:02:08]}  Bxc3+ {[%clk 0:02:49]} 12. bxc3 {[%clk 0:02:09]}  Nc6 {[%clk 0:02:48]} 13. Be2 {[%clk 0:02:04]}  Qa5 {[%clk 0:02:40]} 14. Bd2 {[%clk 0:02:02]}  Ne7 {[%clk 0:02:40]} 15. O-O {[%clk 0:01:54]}  Nd5 {[%clk 0:02:37]} 16. Qxe4 {[%clk 0:01:48]}  O-O-O {[%clk 0:02:33]} 17. Bf3 {[%clk 0:01:40]}  Qa6 {[%clk 0:02:23]} 18. Rfb1 {[%clk 0:01:27]}  g5 {[%clk 0:02:16]} 19. c4 {[%clk 0:00:57]}  g4 {[%clk 0:02:03]} 20. cxd5 {[%clk 0:00:12]}  gxf3 {[%clk 0:02:03]} 21. Qxf3 {[%clk 0:00:13]}  Bxd5 {[%clk 0:02:00]} 22. Qd3 {[%clk 0:00:11]}  Qa4 {[%clk 0:01:51]} 23. Rb4 {[%clk 0:00:09]}  Qc6 {[%clk 0:01:51]} 24. f3 {[%clk 0:00:10]}  Rhg8 {[%clk 0:01:50]} 25. Kf2 {[%clk 0:00:09]}  a5 {[%clk 0:01:50]} 26. Rb2 {[%clk 0:00:03]}  h4 {[%clk 0:01:50]} 27. Be3 {[%clk 0:00:02]}  h3 {[%clk 0:01:49]} 28. g3 {[%clk 0:00:01]}  Bxf3 {[%clk 0:01:50]} 29. c4 {[%clk 0:00:02]}  Be4 {[%clk 0:01:49]} 30. d5 {[%clk 0:00:01]}  exd5 {[%clk 0:01:48]} 31. cxd5 {[%clk 0:00:02]}  Rxd5 {[%clk 0:01:48]} 32. Qe2 {[%clk 0:00:02]}  Rxe5 {[%clk 0:01:47]} 33. Rc1 {[%clk 0:00:02]}  Qf6+ {[%clk 0:01:42]} 34. Kg1 {[%clk 0:00:02]}  Bb7 {[%clk 0:01:40]} 35. Bf4 {[%clk 0:00:03]}  Rxe2 {[%clk 0:01:39]} 36. Rxc7+ {[%clk 0:00:03]}  Kd8 {[%clk 0:01:37]} 37. Rxe2 {[%clk 0:00:04]}  Qxf4 {[%clk 0:01:32]} 38. Rxb7 {[%clk 0:00:04]}  Rxg3+ {[%clk 0:01:29]} 39. hxg3 {[%clk 0:00:01]}  Qxg3+ {[%clk 0:01:30]} 40. Kf1 {[%clk 0:00:01]}  Qf3+ {[%clk 0:01:30]} 0-1


[Site "https://www.chess.com"]

[Event "Titled Tuesday Blitz November 01 Late 2022"]
[White "Pace, Christopher"]
[Black "Valdes Romero, Leonardo"]
[WhiteFideId "2610167"]
[BlackFideId "6500331"]
[WhiteElo "2275"]
[BlackElo "2494"]
[Result "1/2-1/2"]
[Round "01"]
[TimeControl "180+1"]
[Date "2022.11.02"]
[WhiteClock "0:00:11"]
[BlackClock "0:00:16"]

1. d4 {[%clk 0:02:57]}  d6 {[%clk 0:02:59]} 2. e4 {[%clk 0:02:56]}  Nf6 {[%clk 0:02:58]} 3. Nc3 {[%clk 0:02:57]}  e5 {[%clk 0:02:58]} 4. Nf3 {[%clk 0:02:56]}  Nbd7 {[%clk 0:02:57]} 5. Bc4 {[%clk 0:02:54]}  Be7 {[%clk 0:02:58]} 6. O-O {[%clk 0:02:53]}  O-O {[%clk 0:02:57]} 7. h3 {[%clk 0:02:52]}  c6 {[%clk 0:02:57]} 8. a4 {[%clk 0:02:50]}  b6 {[%clk 0:02:58]} 9. d5 {[%clk 0:02:46]}  cxd5 {[%clk 0:02:56]} 10. Nxd5 {[%clk 0:02:44]}  Bb7 {[%clk 0:02:56]} 11. Re1 {[%clk 0:02:01]}  Rc8 {[%clk 0:02:55]} 12. b3 {[%clk 0:01:24]}  Nxd5 {[%clk 0:02:42]} 13. Bxd5 {[%clk 0:01:21]}  Bxd5 {[%clk 0:02:41]} 14. exd5 {[%clk 0:01:12]}  f5 {[%clk 0:02:39]} 15. Nd2 {[%clk 0:01:13]}  Bf6 {[%clk 0:02:31]} 16. Nc4 {[%clk 0:01:08]}  Nc5 {[%clk 0:02:28]} 17. Bb2 {[%clk 0:00:44]}  g6 {[%clk 0:01:53]} 18. Qe2 {[%clk 0:00:44]}  Re8 {[%clk 0:01:46]} 19. Rad1 {[%clk 0:00:20]}  Qc7 {[%clk 0:01:34]} 20. Ba3 {[%clk 0:00:19]}  e4 {[%clk 0:01:26]} 21. Bc1 {[%clk 0:00:16]}  Qd7 {[%clk 0:00:18]} 22. Bf4 {[%clk 0:00:16]}  Be7 {[%clk 0:00:15]} 23. g4 {[%clk 0:00:12]}  Rf8 {[%clk 0:00:15]} 24. g5 {[%clk 0:00:12]}  Rf7 {[%clk 0:00:14]} 25. h4 {[%clk 0:00:13]}  Re8 {[%clk 0:00:15]} 26. Qe3 {[%clk 0:00:13]}  Bf8 {[%clk 0:00:15]} 27. Qg3 {[%clk 0:00:13]}  Qd8 {[%clk 0:00:14]} 28. Bxd6 {[%clk 0:00:11]}  Rd7 {[%clk 0:00:14]} 29. Bxf8 {[%clk 0:00:10]}  Rxf8 {[%clk 0:00:14]} 30. d6 {[%clk 0:00:11]}  Qe8 {[%clk 0:00:14]} 31. Ne5 {[%clk 0:00:11]}  Rd8 {[%clk 0:00:13]} 32. d7 {[%clk 0:00:12]}  Qe6 {[%clk 0:00:14]} 33. b4 {[%clk 0:00:12]}  Nxa4 {[%clk 0:00:12]} 34. Qb3 {[%clk 0:00:08]}  Qxb3 {[%clk 0:00:11]} 35. cxb3 {[%clk 0:00:09]}  Nc3 {[%clk 0:00:11]} 36. Rc1 {[%clk 0:00:10]}  Nd5 {[%clk 0:00:11]} 37. Red1 {[%clk 0:00:09]}  Nxb4 {[%clk 0:00:11]} 38. Rc7 {[%clk 0:00:08]}  Nd3 {[%clk 0:00:11]} 39. Nxd3 {[%clk 0:00:08]}  exd3 {[%clk 0:00:11]} 40. Rxd3 {[%clk 0:00:09]}  Kf7 {[%clk 0:00:11]} 41. Rxa7 {[%clk 0:00:09]}  Ke7 {[%clk 0:00:12]} 42. Rb7 {[%clk 0:00:10]}  b5 {[%clk 0:00:12]} 43. b4 {[%clk 0:00:10]}  Rf7 {[%clk 0:00:11]} 44. f4 {[%clk 0:00:11]}  Kf8 {[%clk 0:00:12]} 45. Kf2 {[%clk 0:00:10]}  Re7 {[%clk 0:00:12]} 46. Kf3 {[%clk 0:00:11]}  Kf7 {[%clk 0:00:13]} 47. Rd6 {[%clk 0:00:11]}  Re4 {[%clk 0:00:12]} 48. Rxb5 {[%clk 0:00:11]}  Re7 {[%clk 0:00:13]} 49. Rb7 {[%clk 0:00:12]}  Re1 {[%clk 0:00:13]} 50. b5 {[%clk 0:00:12]}  Ke7 {[%clk 0:00:13]} 51. Rd3 {[%clk 0:00:12]}  Rf1+ {[%clk 0:00:14]} 52. Kg2 {[%clk 0:00:12]}  Rb1 {[%clk 0:00:14]} 53. b6 {[%clk 0:00:11]}  Rb2+ {[%clk 0:00:15]} 54. Kf3 {[%clk 0:00:11]}  Rb1 {[%clk 0:00:15]} 55. Re3+ {[%clk 0:00:12]}  Kf7 {[%clk 0:00:15]} 56. Rc3 {[%clk 0:00:11]}  Ke7 {[%clk 0:00:15]} 57. Re3+ {[%clk 0:00:10]}  Kf7 {[%clk 0:00:15]} 58. Rc3 {[%clk 0:00:11]}  Ke7 {[%clk 0:00:16]} 59. Re3+ {[%clk 0:00:11]} 1/2-1/2


[Site "https://www.chess.com"]